[Event "LEM Sachsen-Anhalt Open 2024"]
[Site "Merseburg"]
[Date "2024.02.11"]
[Round "7.1"]
[White "Carnot, Luca"]
[Black "Moser, Axel"]
[Result "1/2-1/2"]
[ECO "A43"]
[WhiteElo "2063"]
[BlackElo "2094"]
[Annotator "NA RC"]
[PlyCount "50"]
[EventDate "2024.02.01"]
[EventType "swiss"]
[EventCountry "GER"]
[SourceTitle "playchess.com"]
[Source "ChessBase"]
[SourceQuality "1"]
[TimeControl "40/5400+30:1800+30"]

1. d4 {[%emt 0:00:04]} Nf6 {[%emt 0:00:05]} 2. Nf3 {[%emt 0:00:04]} c5 {[%emt 0:00:04]} 3. d5 {[%emt 0:00:04]} b5 {[%emt 0:00:17]} 4. Bg5 {[%emt 0:00:04]} Qb6 {[%emt 0:00:05]} 5. a4 {[%emt 0:00:05]} b4 {[%emt 0:00:13]} 6. a5 {[%emt 0:00:10]} Qb7 {[%emt 0:15:46]} 7. Bxf6 {[%emt 0:00:18]} exf6 {[%emt 0:06:39]} 8. e4 {[%emt 0:00:51]} d6 {[%emt 0:01:45]} 9. Be2 {[%emt 0:02:56]} g6 {[%emt 0:03:26]} 10. Nbd2 {[%emt 0:09:29]} Bg7 {[%emt 0:01:06]} 11. Nc4 {[%emt 0:00:22]} Qc7 {[%emt 0:00:12]} 12. O-O {[%emt 0:03:19]} O-O {[%emt 0:00:54]} 13. Qd2 {[%emt 0:11:09]} Nd7 {[%emt 0:04:06]} 14. Qf4 {[%emt 0:05:36]} Ba6 {[%emt 0:05:41]} 15. Nfd2 {[%emt 0:11:43]} Ne5 {[%emt 0:03:28]} 16. Rfe1 {[%emt 0:01:43]} Rad8 {[%emt 0:08:16]} 17. Nxe5 {[%emt 0:03:29]} fxe5 {[%emt 0:00:20]} 18. Qe3 {[%emt 0:00:40]} Bc8 {[%emt 0:00:32]} 19. c3 {[%emt 0:00:57]} bxc3 {[%emt 0:03:38]} 20. Qxc3 {[%emt 0:01:20]} Qe7 {[%emt 0:00:13]} 21. b4 {[%emt 0:02:14]} cxb4 {[%emt 0:00:19]} 22. Qxb4 {[%emt 0:00:46]} f5 {[%emt 0:00:38]} 23. f3 {[%emt 0:08:57]} Bh6 {[%emt 0:05:51]} 24. Nf1 {[%emt 0:00:35]} Qh4 {[%emt 0:08:18]} 25. Bd3 {[%emt 0:04:17]} Rf7 {[%emt 0:04:46]} 1/2-1/2

[Event "LEM Sachsen-Anhalt Open 2024"]
[Site "Merseburg"]
[Date "2024.02.11"]
[Round "7.2"]
[White "Geldner, Gerrit"]
[Black "Tawilah, Youssef"]
[Result "1/2-1/2"]
[ECO "A23"]
[WhiteElo "1889"]
[BlackElo "1541"]
[Annotator "NA RC"]
[PlyCount "86"]
[EventDate "2024.02.01"]
[EventType "swiss"]
[EventCountry "GER"]
[SourceTitle "playchess.com"]
[Source "ChessBase"]
[SourceQuality "1"]
[TimeControl "40/5400+30:1800+30"]

1. c4 {[%emt 0:00:06]} Nf6 {[%emt 0:00:25]} 2. Nc3 {[%emt 0:00:26]} e5 {[%emt 0:00:26]} 3. g3 {[%emt 0:00:48]} c6 {[%emt 0:00:35]} 4. Nf3 {[%emt 0:01:04]} e4 {[%emt 0:00:13]} 5. Nd4 {[%emt 0:01:15]} Qb6 {[%emt 0:00:51]} 6. e3 {[%emt 0:11:58]} d5 {[%emt 0:01:40]} 7. cxd5 {[%emt 0:01:47]} cxd5 {[%emt 0:00:06]} 8. d3 {[%emt 0:05:52]} exd3 {[%emt 0:07:50]} 9. Qxd3 {[%emt 0:02:13]} Nc6 {[%emt 0:01:09]} 10. Bg2 {[%emt 0:02:52]} Be6 {[%emt 0:04:33]} 11. O-O {[%emt 0:03:45]} a6 {[%emt 0:05:08]} 12. b3 {[%emt 0:04:14]} Rc8 {[%emt 0:11:32]} 13. Nce2 {[%emt 0:03:44]} Nxd4 {[%emt 0:06:02]} 14. Nxd4 {[%emt 0:00:39]} Be7 {[%emt 0:00:37]} 15. Nf5 {[%emt 0:05:11]} Bxf5 {[%emt 0:01:54]} 16. Qxf5 {[%emt 0:00:22]} Qe6 {[%emt 0:00:12]} 17. Qd3 {[%emt 0:01:07]} O-O {[%emt 0:01:27]} 18. Bb2 {[%emt 0:01:15]} Rfd8 {[%emt 0:01:24]} 19. Rac1 {[%emt 0:06:38]} Ne4 {[%emt 0:07:29]} 20. Rxc8 {[%emt 0:07:02]} Rxc8 {[%emt 0:00:29]} 21. Rd1 {[%emt 0:00:58]} Rd8 {[%emt 0:01:31]} 22. Rc1 {[%emt 0:16:36]} Bf6 {[%emt 0:19:05]} 23. Bxf6 {[%emt 0:03:40]} Nxf6 {[%emt 0:00:10]} 24. Qd4 {[%emt 0:01:51]} h6 {[%emt 0:17:06]} 25. Rd1 {[%emt 0:03:49]} Rd7 {[%emt 0:01:24]} 26. Qh4 {[%emt 0:01:15]} Qc6 {[%emt 0:00:38]} 27. Bh3 {[%emt 0:01:27]} Rc7 {[%emt 0:01:39]} 28. Bf5 {[%emt 0:01:13]} g6 {[%emt 0:02:32]} 29. Bb1 {[%emt 0:01:37]} Kg7 {[%emt 0:00:02]} 30. Qd4 {[%emt 0:02:12]} Qc5 {[%emt 0:01:51]} 31. Qxc5 {[%emt 0:03:38]} Rxc5 {[%emt 0:00:01]} 32. Kg2 {[%emt 0:00:18]} a5 {[%emt 0:01:12]} 33. f3 {[%emt 0:01:45]} b6 {[%emt 0:01:47]} 34. Kf2 {[%emt 0:00:29]} Ne8 {[%emt 0:00:31]} 35. Rd2 {[%emt 0:00:40]} Kf6 {[%emt 0:01:12]} 36. Ke2 {[%emt 0:01:06]} Nc7 {[%emt 0:01:57]} 37. Kd3 {[%emt 0:01:52]} Nb5 {[%emt 0:01:37]} 38. Rc2 {[%emt 0:01:30]} Na3 {[%emt 0:00:29]} 39. Rxc5 {[%emt 0:00:39]} bxc5 {[%emt 0:00:01]} 40. Bc2 {[%emt 0:01:37]} Nxc2 {[%emt 0:00:33]} 41. Kxc2 {[%emt 0:29:04]} Ke6 {[%emt 0:30:45]} 42. Kd3 {[%emt 0:00:00]} Kd6 {[%emt 0:00:00]} 43. a3 {[%emt 0:00:00]} f5 {[%emt 0:00:00]} 1/2-1/2

[Event "LEM Sachsen-Anhalt Open 2024"]
[Site "Merseburg"]
[Date "2024.02.11"]
[Round "7.3"]
[White "Binnewies, Markus"]
[Black "Kern, Rene"]
[Result "0-1"]
[ECO "D02"]
[WhiteElo "1772"]
[BlackElo "1792"]
[Annotator "NA RC"]
[PlyCount "70"]
[EventDate "2024.02.01"]
[EventType "swiss"]
[EventCountry "GER"]
[SourceTitle "playchess.com"]
[Source "ChessBase"]
[SourceQuality "1"]
[TimeControl "40/5400+30:1800+30"]

1. d4 {[%emt 0:00:08]} d5 {[%emt 0:00:09]} 2. g3 {[%emt 0:03:43]} Nf6 {[%emt 0:00:20]} 3. Bg2 {[%emt 0:00:19]} b6 {[%emt 0:00:53]} 4. Nf3 {[%emt 0:01:37]} Bb7 {[%emt 0:00:28]} 5. O-O {[%emt 0:01:45]} e6 {[%emt 0:02:10]} 6. b3 {[%emt 0:05:36]} c5 {[%emt 0:01:22]} 7. Bb2 {[%emt 0:02:53]} Nc6 {[%emt 0:02:32]} 8. Nbd2 {[%emt 0:01:40]} cxd4 {[%emt 0:01:20]} 9. Nxd4 {[%emt 0:00:22]} Nxd4 {[%emt 0:00:17]} 10. Bxd4 {[%emt 0:00:14]} Bc5 {[%emt 0:02:29]} 11. e3 {[%emt 0:01:18]} O-O {[%emt 0:01:33]} 12. Bxc5 {[%emt 0:01:32]} bxc5 {[%emt 0:00:06]} 13. c4 {[%emt 0:00:10]} Qd7 {[%emt 0:02:24]} 14. cxd5 {[%emt 0:02:47]} exd5 {[%emt 0:00:44]} 15. Rc1 {[%emt 0:00:50]} Rac8 {[%emt 0:00:41]} 16. Qe2 {[%emt 0:02:21]} Rfe8 {[%emt 0:00:19]} 17. Qd3 {[%emt 0:01:14]} Qe6 {[%emt 0:01:31]} 18. Rfd1 {[%emt 0:02:05]} Ba6 {[%emt 0:01:17]} 19. Qc3 {[%emt 0:03:35]} Red8 {[%emt 0:01:37]} 20. Qa5 {[%emt 0:01:50]} Qb6 {[%emt 0:00:55]} 21. Qa3 {[%emt 0:04:09]} h6 {[%emt 0:23:08]} 22. h3 {[%emt 0:00:17]} Bb7 {[%emt 0:02:18]} 23. Nf3 {[%emt 0:02:12]} Ba6 {[%emt 0:05:50]} 24. Rd2 {[%emt 0:01:14]} Ne4 {[%emt 0:01:00]} 25. Rdd1 {[%emt 0:01:11]} Be2 {[%emt 0:01:52]} 26. Re1 {[%emt 0:00:22]} Ba6 {[%emt 0:02:25]} 27. Bf1 {[%emt 0:01:55]} Bb7 {[%emt 0:01:03]} 28. Be2 {[%emt 0:04:19]} Qc7 {[%emt 0:04:57]} 29. Nh4 {[%emt 0:03:10]} d4 {[%emt 0:06:44]} 30. exd4 {[%emt 0:05:19]} Rxd4 {[%emt 0:09:01]} 31. Rc2 {[%emt 0:10:07]} Nxg3 {[%emt 0:05:28]} 32. fxg3 {[%emt 0:00:44]} Qxg3+ {[%emt 0:19:37]} 33. Kf1 {[%emt 0:01:32]} Qxh3+ {[%emt 0:00:00]} 34. Kg1 {[%emt 0:00:46]} Qh1+ {[%emt 0:00:00]} 35. Kf2 {[%emt 0:00:29]} Qxh4+ {[%emt 0:00:00]} 0-1

[Event "LEM Sachsen-Anhalt Open 2024"]
[Site "Merseburg"]
[Date "2024.02.11"]
[Round "7.4"]
[White "Urban, Tom"]
[Black "Martemyanov, Mikhail"]
[Result "1-0"]
[ECO "B23"]
[WhiteElo "1696"]
[BlackElo "1257"]
[Annotator "NA COMBH"]
[PlyCount "87"]
[EventDate "2024.02.01"]
[EventType "swiss"]
[EventCountry "GER"]
[SourceTitle "playchess.com"]
[Source "ChessBase"]
[SourceQuality "1"]
[TimeControl "40/5400+30:1800+30"]

1. e4 {[%emt 0:00:01]} c5 {[%emt 0:00:04]} 2. Nc3 {[%emt 0:00:11]} e6 {[%emt 0:00:04]} 3. f4 {[%emt 0:00:08]} d5 {[%emt 0:00:07]} 4. Nf3 {[%emt 0:00:08]} d4 {[%emt 0:06:04]} 5. Bb5+ {[%emt 0:01:06]} Bd7 {[%emt 0:00:52]} 6. Bxd7+ {[%emt 0:00:23]} Qxd7 {[%emt 0:02:52]} 7. Ne2 {[%emt 0:03:42]} Nc6 {[%emt 0:02:19]} 8. d3 {[%emt 0:00:39]} Bd6 {[%emt 0:06:50]} 9. Bd2 {[%emt 0:02:09]} Nge7 {[%emt 0:02:37]} 10. O-O {[%emt 0:04:06]} Bc7 {[%emt 0:06:40]} 11. Qe1 {[%emt 0:06:32]} O-O-O {[%emt 0:05:33]} 12. a3 {[%emt 0:04:52]} a6 {[%emt 0:18:46]} 13. b4 {[%emt 0:07:40]} cxb4 {[%emt 0:01:41]} 14. axb4 {[%emt 0:00:49]} Na7 {[%emt 0:04:54]} 15. Nexd4 {[%emt 0:06:03]} Nb5 {[%emt 0:07:28]} 16. Nb3 {[%emt 0:04:51]} Nc6 {[%emt 0:31:39]} 17. Be3 {[%emt 0:02:00]} Qe7 {[%emt 0:00:00]} 18. Bc5 {[%emt 0:02:17]} Qf6 {[%emt 0:00:00]} 19. g3 {[%emt 0:02:03]} Qc3 {[%emt 0:00:00]} 20. Qxc3 {[%emt 0:02:58]} Nxc3 {[%emt 0:00:00]} 21. Na5 {[%emt 0:04:55]} Nb8 {[%emt 0:00:00]} 22. Nc4 {[%emt 0:03:11]} Nd7 {[%emt 0:00:00]} 23. Nd6+ {[%emt 0:02:01]} Bxd6 {[%emt 0:00:18]} 24. Bxd6 {[%emt 0:00:12]} Nb5 {[%emt 0:00:20]} 25. Be5 {[%emt 0:01:51]} Nxe5 {[%emt 0:00:25]} 26. Nxe5 {[%emt 0:00:20]} Rhf8 {[%emt 0:00:13]} 27. Nf3 {[%emt 0:04:51]} h6 {[%emt 0:01:52]} 28. Kf2 {[%emt 0:01:57]} Kb8 {[%emt 0:01:43]} 29. Ke3 {[%emt 0:00:15]} Rd6 {[%emt 0:00:52]} 30. c4 {[%emt 0:01:28]} Na7 {[%emt 0:00:21]} 31. Rfb1 {[%emt 0:02:33]} Rc8 {[%emt 0:00:39]} 32. Rb2 {[%emt 0:04:19]} Rc7 {[%emt 0:00:44]} 33. e5 {[%emt 0:03:33]} Rd8 {[%emt 0:00:16]} 34. Nd2 {[%emt 0:01:13]} Rcd7 {[%emt 0:00:38]} 35. Ra3 {[%emt 0:00:32]} Nc6 {[%emt 0:00:27]} 36. Ne4 {[%emt 0:01:24]} Ne7 {[%emt 0:00:31]} 37. Nd6 {[%emt 0:04:55]} f6 {[%emt 0:00:17]} 38. d4 {[%emt 0:03:36]} Rc7 {[%emt 0:01:24]} 39. b5 {[%emt 0:03:41]} axb5 {[%emt 0:00:00]} 40. Rxb5 {[%emt 0:00:59]} Rdd7 {[%emt 0:00:26]} 41. Rba5 {[%emt 0:30:41]} Rc6 {[%emt 0:02:07]} 42. Ra8+ {[%emt 0:00:00]} Kc7 {[%emt 0:00:05]} 43. Ne8+ {[%emt 0:00:00]} Kb6 {[%emt 0:00:31]} 44. Rb3# {[%emt 0:00:00]} 1-0

[Event "LEM Sachsen-Anhalt Open 2024"]
[Site "Merseburg"]
[Date "2024.02.11"]
[Round "7.6"]
[White "Winnig, Bernd"]
[Black "Hentzgen, Thomas"]
[Result "0-1"]
[ECO "A40"]
[WhiteElo "1883"]
[BlackElo "1939"]
[Annotator "NA RC"]
[PlyCount "102"]
[EventDate "2024.02.01"]
[EventType "swiss"]
[EventCountry "GER"]
[SourceTitle "playchess.com"]
[Source "ChessBase"]
[SourceQuality "1"]
[TimeControl "40/5400+30:1800+30"]

1. d4 {[%emt 0:00:03]} e6 {[%emt 0:00:06]} 2. c4 {[%emt 0:00:45]} b6 {[%emt 0:00:13]} 3. e4 {[%emt 0:00:17]} Bb7 {[%emt 0:00:48]} 4. Bd3 {[%emt 0:00:12]} Bb4+ {[%emt 0:00:59]} 5. Nc3 {[%emt 0:01:41]} f5 {[%emt 0:03:09]} 6. Qe2 {[%emt 0:04:42]} Nf6 {[%emt 0:01:24]} 7. Bg5 {[%emt 0:00:59]} h6 {[%emt 0:00:43]} 8. Bxf6 {[%emt 0:00:55]} Qxf6 {[%emt 0:00:05]} 9. Nf3 {[%emt 0:00:42]} O-O {[%emt 0:11:11]} 10. O-O {[%emt 0:03:33]} Bxc3 {[%emt 0:13:08]} 11. bxc3 {[%emt 0:00:08]} fxe4 {[%emt 0:00:22]} 12. Bxe4 {[%emt 0:00:32]} Bxe4 {[%emt 0:00:15]} 13. Qxe4 {[%emt 0:00:03]} Nc6 {[%emt 0:00:22]} 14. Rae1 {[%emt 0:23:12]} Qf5 {[%emt 0:02:50]} 15. d5 {[%emt 0:08:11]} exd5 {[%emt 0:11:16]} 16. cxd5 {[%emt 0:01:10]} Na5 {[%emt 0:03:47]} 17. c4 {[%emt 0:03:27]} Nb7 {[%emt 0:02:48]} 18. Nd4 {[%emt 0:07:13]} Qxe4 {[%emt 0:02:22]} 19. Rxe4 {[%emt 0:00:06]} Nd6 {[%emt 0:00:07]} 20. Re7 {[%emt 0:07:12]} Rf7 {[%emt 0:00:30]} 21. Rxf7 {[%emt 0:01:48]} Kxf7 {[%emt 0:00:03]} 22. Nb5 {[%emt 0:00:20]} Nxb5 {[%emt 0:01:01]} 23. cxb5 {[%emt 0:00:01]} Ke7 {[%emt 0:00:04]} 24. f4 {[%emt 0:07:36]} Rf8 {[%emt 0:02:23]} 25. Re1+ {[%emt 0:06:10]} Kd6 {[%emt 0:00:16]} 26. Re4 {[%emt 0:00:17]} Rf7 {[%emt 0:07:39]} 27. Kf2 {[%emt 0:01:06]} Kxd5 {[%emt 0:00:56]} 28. Ke3 {[%emt 0:00:24]} Kc5 {[%emt 0:00:37]} 29. a4 {[%emt 0:00:29]} c6 {[%emt 0:01:33]} 30. bxc6 {[%emt 0:00:41]} dxc6 {[%emt 0:00:12]} 31. g4 {[%emt 0:01:36]} a5 {[%emt 0:04:06]} 32. h4 {[%emt 0:01:10]} b5 {[%emt 0:00:11]} 33. f5 {[%emt 0:05:02]} bxa4 {[%emt 0:10:21]} 34. Rxa4 {[%emt 0:00:14]} Kb5 {[%emt 0:00:01]} 35. Re4 {[%emt 0:04:56]} a4 {[%emt 0:01:01]} 36. Kd3 {[%emt 0:00:37]} c5 {[%emt 0:00:48]} 37. Kc3 {[%emt 0:00:34]} Rd7 {[%emt 0:00:30]} 38. g5 {[%emt 0:01:25]} a3 {[%emt 0:12:02]} 39. Re8 {[%emt 0:05:21]} Ra7 {[%emt 0:01:51]} 40. Rb8+ {[%emt 0:02:35]} Kc6 {[%emt 0:00:11]} 41. Rb1 {[%emt 0:30:14]} Kd5 {[%emt 0:32:20]} 42. f6 {[%emt 0:00:00]} gxf6 {[%emt 0:00:00]} 43. gxf6 {[%emt 0:00:00]} Ke6 {[%emt 0:00:00]} 44. Kc4 {[%emt 0:00:00]} a2 {[%emt 0:00:00]} 45. Ra1 {[%emt 0:00:00]} Ra5 {[%emt 0:00:00]} 46. f7 {[%emt 0:00:00]} Kxf7 {[%emt 0:00:00]} 47. Kd5 {[%emt 0:00:00]} Kg6 {[%emt 0:00:00]} 48. Ke5 {[%emt 0:00:00]} Kh5 {[%emt 0:00:00]} 49. Kf4 {[%emt 0:00:00]} c4 {[%emt 0:00:00]} 50. Ke4 {[%emt 0:00:00]} c3 {[%emt 0:00:00]} 51. Kd3 {[%emt 0:00:00]} Ra3 {[%emt 0:00:00]} 0-1

[Event "LEM Sachsen-Anhalt Open 2024"]
[Site "Merseburg"]
[Date "2024.02.11"]
[Round "7.7"]
[White "Lehmann, Taylor"]
[Black "Dobierzin, Olaf"]
[Result "1/2-1/2"]
[ECO "B23"]
[WhiteElo "1745"]
[BlackElo "1927"]
[Annotator "NA RC"]
[PlyCount "97"]
[EventDate "2024.02.01"]
[EventType "swiss"]
[EventCountry "GER"]
[SourceTitle "playchess.com"]
[Source "ChessBase"]
[SourceQuality "1"]
[TimeControl "40/5400+30:1800+30"]

1. e4 {[%emt 0:01:50]} c5 {[%emt 0:00:08]} 2. Nc3 {[%emt 0:00:07]} Nc6 {[%emt 0:00:20]} 3. f4 {[%emt 0:00:08]} g6 {[%emt 0:00:11]} 4. Bb5 {[%emt 0:00:52]} Nd4 {[%emt 0:01:07]} 5. Bc4 {[%emt 0:00:36]} e6 {[%emt 0:01:09]} 6. Nf3 {[%emt 0:00:15]} Bg7 {[%emt 0:00:39]} 7. O-O {[%emt 0:00:10]} a6 {[%emt 0:01:52]} 8. a4 {[%emt 0:00:21]} Ne7 {[%emt 0:00:38]} 9. Re1 {[%emt 0:00:57]} O-O {[%emt 0:01:06]} 10. d3 {[%emt 0:00:13]} d5 {[%emt 0:01:41]} 11. Ba2 {[%emt 0:01:53]} b5 {[%emt 0:07:38]} 12. e5 {[%emt 0:06:32]} Nxf3+ {[%emt 0:04:05]} 13. Qxf3 {[%emt 0:00:12]} Qb6 {[%emt 0:03:37]} 14. Bd2 {[%emt 0:09:10]} Bb7 {[%emt 0:01:56]} 15. a5 {[%emt 0:03:54]} Qc7 {[%emt 0:01:07]} 16. g4 {[%emt 0:02:38]} b4 {[%emt 0:12:18]} 17. Ne2 {[%emt 0:01:48]} d4 {[%emt 0:01:23]} 18. Qf2 {[%emt 0:00:38]} Qc6 {[%emt 0:19:06]} 19. Ng3 {[%emt 0:00:10]} Qf3 {[%emt 0:00:46]} 20. h3 {[%emt 0:03:46]} Qxf2+ {[%emt 0:00:22]} 21. Kxf2 {[%emt 0:00:07]} Bd5 {[%emt 0:01:25]} 22. Bc4 {[%emt 0:00:38]} Bxc4 {[%emt 0:10:15]} 23. dxc4 {[%emt 0:00:06]} Rfc8 {[%emt 0:02:58]} 24. Ne4 {[%emt 0:00:13]} Rc7 {[%emt 0:03:55]} 25. b3 {[%emt 0:03:09]} Rd8 {[%emt 0:03:31]} 26. Ke2 {[%emt 0:03:04]} Bf8 {[%emt 0:04:22]} 27. Kd3 {[%emt 0:00:40]} Nc6 {[%emt 0:00:33]} 28. h4 {[%emt 0:00:46]} h6 {[%emt 0:02:37]} 29. h5 {[%emt 0:06:07]} Kg7 {[%emt 0:03:17]} 30. Rg1 {[%emt 0:01:52]} g5 {[%emt 0:01:26]} 31. Rge1 {[%emt 0:02:33]} Be7 {[%emt 0:01:33]} 32. Rf1 {[%emt 0:01:22]} Rf8 {[%emt 0:01:45]} 33. Rae1 {[%emt 0:04:22]} Rd8 {[%emt 0:01:17]} 34. Nf6 {[%emt 0:46:21]} gxf4 {[%emt 0:02:28]} 35. Bxf4 {[%emt 0:00:00]} Rcc8 {[%emt 0:00:46]} 36. g5 {[%emt 0:00:00]} Bxf6 {[%emt 0:01:46]} 37. exf6+ {[%emt 0:00:00]} Kh7 {[%emt 0:00:01]} 38. gxh6 {[%emt 0:00:00]} Rg8 {[%emt 0:01:14]} 39. Rg1 {[%emt 0:00:00]} e5 {[%emt 0:01:24]} 40. Bd2 {[%emt 0:00:00]} Rce8 {[%emt 0:00:48]} 41. Ke4 {[%emt 0:13:39]} Re6 {[%emt 0:05:26]} 42. Kf5 {[%emt 0:00:00]} d3 {[%emt 0:13:35]} 43. Rxg8 {[%emt 0:00:00]} Kxg8 {[%emt 0:00:01]} 44. Rg1+ {[%emt 0:00:00]} Kh8 {[%emt 0:00:04]} 45. cxd3 {[%emt 0:01:58]} Nd4+ {[%emt 0:01:01]} 46. Ke4 {[%emt 0:00:11]} Rxf6 {[%emt 0:01:06]} 47. Be3 {[%emt 0:02:26]} Nxb3 {[%emt 0:01:50]} 48. Kd5 {[%emt 0:01:04]} Rf3 {[%emt 0:01:38]} 49. Rb1 {[%emt 0:18:12]} 1/2-1/2

[Event "LEM Sachsen-Anhalt Open 2024"]
[Site "Merseburg"]
[Date "2024.02.11"]
[Round "7.8"]
[White "Shevchenko, Igor"]
[Black "Korte, Markus"]
[Result "1/2-1/2"]
[ECO "A31"]
[WhiteElo "2105"]
[BlackElo "1879"]
[Annotator "NA RC"]
[PlyCount "115"]
[EventDate "2024.02.01"]
[EventType "swiss"]
[EventCountry "GER"]
[SourceTitle "playchess.com"]
[Source "ChessBase"]
[SourceQuality "1"]
[TimeControl "40/5400+30:1800+30"]

1. d4 {[%emt 0:00:37]} Nf6 {[%emt 0:00:26]} 2. c4 {[%emt 0:00:08]} c5 {[%emt 0:00:21]} 3. Nf3 {[%emt 0:00:11]} cxd4 {[%emt 0:00:29]} 4. Nxd4 {[%emt 0:00:09]} e5 {[%emt 0:00:35]} 5. Nf3 {[%emt 0:00:45]} Bc5 {[%emt 0:01:31]} 6. e3 {[%emt 0:04:42]} Nc6 {[%emt 0:03:30]} 7. Nc3 {[%emt 0:04:23]} d6 {[%emt 0:01:16]} 8. Be2 {[%emt 0:03:32]} O-O {[%emt 0:07:19]} 9. O-O {[%emt 0:00:35]} e4 {[%emt 0:02:51]} 10. Nd2 {[%emt 0:01:05]} Re8 {[%emt 0:01:28]} 11. a3 {[%emt 0:01:41]} a5 {[%emt 0:10:34]} 12. Nb3 {[%emt 0:01:32]} Ba7 {[%emt 0:03:55]} 13. Nb5 {[%emt 0:02:10]} Bb8 {[%emt 0:00:49]} 14. N3d4 {[%emt 0:02:55]} d5 {[%emt 0:01:39]} 15. cxd5 {[%emt 0:02:52]} Qxd5 {[%emt 0:01:00]} 16. Nxc6 {[%emt 0:01:59]} Qxc6 {[%emt 0:01:11]} 17. Bd2 {[%emt 0:03:19]} Rd8 {[%emt 0:04:41]} 18. Rc1 {[%emt 0:08:57]} Qe6 {[%emt 0:04:07]} 19. Qc2 {[%emt 0:15:50]} Bd7 {[%emt 0:05:59]} 20. Nd4 {[%emt 0:07:13]} Qd6 {[%emt 0:04:32]} 21. g3 {[%emt 0:05:16]} h6 {[%emt 0:07:44]} 22. Bc3 {[%emt 0:10:47]} Qe7 {[%emt 0:05:01]} 23. Rfd1 {[%emt 0:05:45]} Be5 {[%emt 0:03:34]} 24. Qb3 {[%emt 0:08:23]} Qe8 {[%emt 0:13:59]} 25. Bb5 {[%emt 0:03:44]} a4 {[%emt 0:01:12]} 26. Bxd7 {[%emt 0:00:21]} Qxd7 {[%emt 0:00:16]} 27. Qa2 {[%emt 0:00:42]} Qh3 {[%emt 0:01:16]} 28. f4 {[%emt 0:04:14]} Bxd4 {[%emt 0:01:42]} 29. Bxd4 {[%emt 0:00:06]} Ng4 {[%emt 0:00:42]} 30. Rd2 {[%emt 0:00:41]} Rac8 {[%emt 0:03:51]} 31. Rc3 {[%emt 0:00:39]} h5 {[%emt 0:00:57]} 32. Qb1 {[%emt 0:00:28]} Re8 {[%emt 0:00:35]} 33. Qc2 {[%emt 0:00:25]} Rxc3 {[%emt 0:00:12]} 34. bxc3 {[%emt 0:00:20]} b5 {[%emt 0:05:03]} 35. Rg2 {[%emt 0:00:24]} Nh6 {[%emt 0:00:15]} 36. Qe2 {[%emt 0:00:25]} Qf5 {[%emt 0:00:20]} 37. Qb2 {[%emt 0:00:31]} Rc8 {[%emt 0:00:36]} 38. c4 {[%emt 0:00:26]} Rxc4 {[%emt 0:00:29]} 39. Bxg7 {[%emt 0:00:07]} Ng4 {[%emt 0:00:19]} 40. Bd4 {[%emt 0:00:12]} Qc8 {[%emt 0:00:39]} 41. Rd2 {[%emt 0:31:07]} Rc1+ {[%emt 0:30:30]} 42. Kg2 {[%emt 0:00:07]} Qc4 {[%emt 0:00:22]} 43. Re2 {[%emt 0:01:29]} Qd3 {[%emt 0:02:34]} 44. Qd2 {[%emt 0:00:00]} Qb1 {[%emt 0:00:00]} 45. Bb2 {[%emt 0:00:00]} Rg1+ {[%emt 0:00:00]} 46. Kh3 {[%emt 0:00:00]} Qd3 {[%emt 0:00:00]} 47. Qc3 {[%emt 0:00:00]} Qxc3 {[%emt 0:00:00]} 48. Bxc3 {[%emt 0:00:00]} Rd1 {[%emt 0:00:00]} 49. Bd2 {[%emt 0:00:00]} Rb1 {[%emt 0:00:00]} 50. Kh4 {[%emt 0:00:00]} Rb2 {[%emt 0:00:00]} 51. Kxh5 {[%emt 0:00:00]} Nxe3 {[%emt 0:00:00]} 52. Rxe3 {[%emt 0:00:00]} Rxd2 {[%emt 0:00:00]} 53. Rxe4 {[%emt 0:00:00]} Rxh2+ {[%emt 0:00:00]} 54. Kg5 {[%emt 0:00:00]} Rc2 {[%emt 0:00:00]} 55. g4 {[%emt 0:00:00]} Kg7 {[%emt 0:00:00]} 56. Rb4 {[%emt 0:00:00]} Rc5+ {[%emt 0:00:02]} 57. Kh4 {[%emt 0:00:09]} Kf6 {[%emt 0:00:34]} 58. Rb2 {[%emt 0:01:40]} 1/2-1/2